fUST/lending_fUST_20251115
["ID","MTS","AMOUNT","RATE_DAILY","PERIOD"]
[393999705,1763172639932,-163.81651222,0.000396,120]
[393999706,1763172639942,-176.25505289,0.000396,120]
[393999707,1763172639951,-197.55653637,0.000396,120]
[393999708,1763172639960,-177.4206029,0.000396,120]
[393999709,1763172639969,-307.2972228,0.000396,120]
[393999710,1763172639979,-161.5606258,0.000396,120]
[393999711,1763172639988,-163.42950571,0.000396,120]
[393999713,1763172639997,-173.16,0.00039601,120]
[393999715,1763172640007,-171.93401041,0.00039605,5]
[393999717,1763172640017,-159.0,0.000397,120]
[393999718,1763172640026,-173.16,0.00039701,120]
[393999720,1763172640035,-173.16,0.00039801,120]
[393999722,1763172640045,-173.16,0.00039901,120]
[393999724,1763172640055,-4204.0,0.0004,30]
[393999726,1763172640064,-283.195514,0.0004,30]
[393999728,1763172640074,-173.16,0.00040001,120]
[393999729,1763172640084,-173.16,0.00040101,120]
[393999730,1763172640094,-1000.0,0.00040102,2]
[393999731,1763172640103,-1000.0,0.00040102,2]
[393999732,1763172640114,-1000.0,0.00040102,2]
[393999733,1763172640123,-1000.0,0.00040102,2]
[393999734,1763172640132,-1000.0,0.00040102,2]
[393999735,1763172640143,-1000.0,0.00040102,2]
[393999736,1763172640152,-1000.0,0.00040102,2]
[393999737,1763172640161,-1000.0,0.00040102,2]
[393999739,1763172640171,-1000.0,0.00040102,2]
[393999741,1763172640180,-1000.0,0.00040102,2]
[393999743,1763172640190,-1000.0,0.00040102,2]
[393999745,1763172640199,-191.02999714,0.00040102,2]
[393999747,1763172640208,-173.16,0.00040201,120]
[393999749,1763172640217,-173.16,0.00040301,120]
[393999751,1763172640226,-283.195514,0.00040397,7]
[393999753,1763172640235,-173.16,0.00040401,120]
[393999755,1763172640244,-283.195514,0.00040402,30]
[393999757,1763172640253,-173.16,0.00040501,120]
[393999759,1763172640262,-173.16,0.00040601,120]
[393999761,1763172640271,-173.16,0.00040701,120]
[393999763,1763172640280,-183.90945505,0.000408,120]
[393999765,1763172640290,-1372.88107901,0.000408,120]
[393999767,1763172640298,-192.03659602,0.000408,120]
[393999769,1763172640307,-171.34017661,0.000408,120]
[393999771,1763172640317,-163.81651222,0.000408,120]
[393999773,1763172640327,-197.55653637,0.000408,120]
[393999775,1763172640336,-177.4206029,0.000408,120]
[393999777,1763172640345,-163.42950571,0.000408,120]
[393999779,1763172640357,-173.16,0.00040801,120]
[393999781,1763172640367,-283.195514,0.00040805,30]
[393999783,1763172640377,-173.16,0.00040901,120]
[393999785,1763172640386,-5000.0,0.00040941,4]
[393999787,1763172640395,-173.16,0.00041001,120]
[393999789,1763172640405,-999.0,0.00041095,120]
[393999791,1763172640414,-183.61852445,0.00041096,2]
[393999793,1763172640423,-3078.87,0.000411,14]
[393999796,1763172640432,-173.16,0.00041101,120]
[393999798,1763172640442,-173.16,0.00041201,120]
[393999800,1763172640451,-283.195514,0.00041208,30]
[393999802,1763172640464,-173.16,0.00041301,120]
[393999804,1763172640473,-418.747,0.00041392,2]
[393999805,1763172640482,-173.16,0.00041401,120]
[393999807,1763172640491,-173.16,0.00041501,120]
[393999809,1763172640501,-173.16,0.00041601,120]
[393999811,1763172640510,-157.29296,0.0004161,30]
[393999814,1763172640520,-283.195514,0.0004161,30]
[393999816,1763172640531,-173.16,0.00041701,120]
[393999818,1763172640543,-173.16,0.00041801,120]
[393999820,1763172640552,-2449.76527139,0.00041835,2]
[393999822,1763172640561,-173.16,0.00041901,120]
[393999824,1763172640571,-183.90945505,0.00042,120]
[393999826,1763172640580,-1372.88107901,0.00042,120]
[393999828,1763172640589,-192.03659602,0.00042,120]
[393999830,1763172640598,-173.16,0.00042001,120]
[393999832,1763172640610,-173.16,0.00042101,120]
[393999834,1763172640619,-179.69451932,0.00042121,26]
[393999836,1763172640629,-173.16,0.00042201,120]
[393999838,1763172640638,-173.16,0.00042301,120]
[393999840,1763172640647,-2000.0,0.00042349,21]
[393999842,1763172640656,-173.16,0.00042401,120]
[393999844,1763172640665,-173.16,0.00042501,120]
[393999846,1763172640674,-173.16,0.00042601,120]
[393999848,1763172640683,-2588.99060827,0.00042625,28]
[393999850,1763172640692,-173.16,0.00042701,120]
[393999852,1763172640701,-150.206,0.00042705,2]
[393999854,1763172640710,-224.887,0.00042705,2]
[393999856,1763172640719,-2154.824,0.00042705,2]
[393999858,1763172640728,-1022.353,0.00042705,2]
[393999860,1763172640737,-632.921,0.00042705,2]
[393999862,1763172640746,-173.16,0.00042801,120]
[393999863,1763172640755,-173.16,0.00042901,120]
[393999866,1763172640765,-173.16,0.00043001,120]
[393999868,1763172640775,-3078.87,0.000431,14]
[393999869,1763172640784,-173.16,0.00043101,120]
[393999871,1763172640793,-406.49,0.00043101,15]
[393999873,1763172640803,-173.16,0.00043201,120]
[393999875,1763172640812,-1966.4424,0.0004322,30]
[393999877,1763172640821,-1372.88107901,0.000433,120]
[393999879,1763172640831,-192.03659602,0.000433,120]
[393999896,1763172640974,-283.195514,0.000433,120]
[393999898,1763172640984,-173.16,0.00043301,120]
[393999900,1763172640993,-173.16,0.00043401,120]
[393999902,1763172641002,-173.16,0.00043501,120]
[393999904,1763172641011,-710.97719485,0.00043562,120]
[393999906,1763172641020,-173.16,0.00043601,120]
[393999908,1763172641030,-173.16,0.00043701,120]
[393999910,1763172641040,-1000.0,0.000438,90]
[393999912,1763172641049,-173.16,0.00043801,120]
[393999914,1763172641059,-999.0,0.00043835,120]
[393999916,1763172641068,-173.16,0.00043901,120]
[393999917,1763172641077,-173.16,0.00044001,120]
[393999920,1763172641087,-173.16,0.00044101,120]
[393999922,1763172641096,-391.16,0.00044109,14]
[393999924,1763172641107,-173.16,0.00044201,120]
[393999926,1763172641117,-2449.76527139,0.00044237,2]
[393999928,1763172641127,-159.0,0.000443,120]
[393999929,1763172641136,-173.16,0.00044301,120]
[393999931,1763172641146,-413.0,0.00044392,2]
[393999933,1763172641155,-173.16,0.00044401,120]
[393999935,1763172641165,-173.16,0.00044501,120]
[393999937,1763172641174,-1372.88107901,0.000446,120]
[393999939,1763172641184,-192.03659602,0.000446,120]
[393999940,1763172641193,-173.16,0.00044601,120]
[393999942,1763172641202,-173.16,0.00044701,120]
[393999943,1763172641212,-283.195514,0.00044737,120]
[393999945,1763172641220,-173.16,0.00044801,120]
[393999946,1763172641232,-173.16,0.00044901,120]
[393999947,1763172641241,-1000.0,0.00044967,14]
[393999948,1763172641251,-780.0,0.00044967,14]
[393999949,1763172641260,-173.16,0.00045001,120]
[393999950,1763172641270,-3078.87,0.000451,14]
[393999951,1763172641279,-173.16,0.00045101,120]
[393999952,1763172641288,-1000.0,0.00045104,14]
[393999953,1763172641298,-173.16,0.00045201,120]
[393999954,1763172641307,-1000.0,0.00045241,14]
[393999955,1763172641316,-173.16,0.00045301,120]
[393999956,1763172641325,-173.16,0.00045401,120]
[393999957,1763172641335,-391.16,0.00045479,15]
[393999958,1763172641344,-173.16,0.00045501,120]
[393999959,1763172641354,-173.16,0.00045601,120]
[393999960,1763172641363,-173.16,0.00045701,120]
[393999961,1763172641373,-150.0,0.00045705,2]
[393999962,1763172641382,-2149.0,0.00045705,2]
[393999963,1763172641392,-988.0,0.00045705,2]
[393999964,1763172641401,-629.0,0.00045705,2]
[393999965,1763172641411,-173.16,0.00045801,120]
[393999966,1763172641420,-173.16,0.00045901,120]
[393999967,1763172641429,-173.16,0.00046001,120]
[393999968,1763172641439,-173.93567808,0.00046101,120]
[393999970,1763172641448,-283.195514,0.00046174,120]
[393999971,1763172641462,-289.187,0.00046466,60]
[393999972,1763172641471,-999.0,0.00046575,120]
[393999973,1763172641481,-2452.21503667,0.00046639,2]
[393999974,1763172641490,-391.16,0.00046849,16]
[393999975,1763172641501,-413.0,0.00047392,2]
[393999976,1763172641510,-283.195514,0.00047596,7]
[393999977,1763172641519,-283.195514,0.0004761,120]
[393999978,1763172641528,-2588.99060827,0.0004788,28]
[393999979,1763172641538,-172.5,0.00048219,120]
[393999980,1763172641548,-391.16,0.00048219,17]
[393999981,1763172641557,-2149.0,0.00048705,2]
[393999982,1763172641566,-988.0,0.00048705,2]
[393999983,1763172641576,-629.0,0.00048705,2]
[393999984,1763172641585,-4426.0,0.00048979,120]
[393999985,1763172641595,-159.0,0.00049,120]
[393999986,1763172641604,-157.29296,0.00049047,120]
[393999987,1763172641614,-283.195514,0.00049047,120]
[393999988,1763172641623,-3078.87,0.000492,14]
[393999989,1763172641632,-300.0,0.00049205,90]
[393999990,1763172641641,-983.08637377,0.00049315,120]
[393999991,1763172641651,-12316.73108573,0.00049573,2]
[393999992,1763172641660,-391.16,0.00049589,18]
[393999993,1763172641669,-34187.4645294,0.0004966,2]
[393999994,1763172641679,-500.0,0.00049673,10]
[393999995,1763172641688,-4000.0,0.000502,120]
[393999996,1763172641698,-4000.0,0.000502,120]
[393999997,1763172641707,-1000.0,0.00050221,10]
[393999998,1763172641717,-413.0,0.00050392,120]
[393999999,1763172641727,-1500.0,0.00050768,10]
[394000000,1763172641736,-182.40711304,0.00050958,120]
[394000001,1763172641746,-391.16,0.00050958,19]
[394000002,1763172641755,-547.05572263,0.00050986,120]
[394000003,1763172641765,-3063.542674,0.00051,85]
[394000004,1763172641776,-1999.98,0.000512,120]
[394000005,1763172641786,-5000.0,0.000512,120]
[394000006,1763172641795,-4000.0,0.000512,120]
[394000007,1763172641805,-773.28380445,0.00051316,10]
[394000008,1763172641814,-2149.0,0.00051705,120]
[394000009,1763172641823,-988.0,0.00051705,120]
[394000010,1763172641832,-629.0,0.00051705,120]
[394000011,1763172641842,-2412.89962437,0.0005185,120]
[394000012,1763172641852,-800.9463298,0.00051918,30]
[394000013,1763172641861,-400.0,0.00051945,120]
[394000014,1763172641871,-151.0,0.00051954,120]
[394000015,1763172641880,-151.0,0.00051954,120]
[394000016,1763172641890,-221.514745,0.00051954,120]
[394000017,1763172641900,-165.521944,0.00051954,120]
[394000018,1763172641909,-151.0,0.00051954,120]
[394000019,1763172641918,-151.0,0.00051954,120]
[394000020,1763172641927,-151.0,0.00051954,120]
[394000021,1763172641936,-151.0,0.00051954,120]
[394000022,1763172641945,-154.360164,0.00051954,120]
[394000023,1763172641954,-494.460272,0.00051954,2]
[394000024,1763172641963,-151.0,0.00051954,120]
[394000025,1763172641973,-494.460272,0.00051954,2]
[394000026,1763172641983,-151.0,0.00051954,120]
[394000027,1763172641992,-494.460272,0.00051954,2]
[394000028,1763172642002,-151.0,0.00051954,120]
[394000029,1763172642011,-494.460272,0.00051954,2]
[394000030,1763172642021,-151.0,0.00051954,120]
[394000031,1763172642030,-151.0,0.00051954,120]
[394000032,1763172642040,-151.0,0.00051954,120]
[394000033,1763172642049,-151.0,0.00051954,120]
[394000034,1763172642059,-151.0,0.00051954,120]
[394000035,1763172642068,-456.788697,0.00051954,120]
[394000036,1763172642078,-154.476908,0.00051954,120]
[394000037,1763172642087,-456.788697,0.00051954,120]
[394000038,1763172642097,-456.788697,0.00051954,120]
[394000039,1763172642106,-456.788697,0.00051954,120]
[394000040,1763172642116,-172.558549,0.00051954,120]
[394000041,1763172642126,-172.558549,0.00051954,120]
[394000042,1763172642136,-172.558549,0.00051954,120]
[394000043,1763172642145,-172.558549,0.00051954,120]
[394000044,1763172642155,-153.799581,0.00051954,120]
[394000045,1763172642165,-186.560179,0.00051954,120]
[394000046,1763172642174,-358.8527,0.00051954,120]
[394000047,1763172642183,-358.8527,0.00051954,120]
[394000048,1763172642192,-358.8527,0.00051954,120]
[394000049,1763172642202,-358.8527,0.00051954,120]
[394000050,1763172642214,-151.0,0.00051954,120]
[394000051,1763172642224,-151.0,0.00051954,120]
[394000052,1763172642233,-151.0,0.00051954,120]
[394000053,1763172642243,-151.0,0.00051954,120]
[394000054,1763172642252,-151.0,0.00051954,120]
[394000055,1763172642262,-197.292001,0.00051954,120]
[394000056,1763172642271,-151.0,0.00051954,120]
[394000057,1763172642280,-197.292001,0.00051954,120]
[394000058,1763172642289,-197.292001,0.00051954,120]
[394000059,1763172642298,-197.292001,0.00051954,120]
[394000060,1763172642308,-153.123315,0.00051954,120]
[394000061,1763172642318,-151.0,0.00051954,120]
[394000062,1763172642327,-158.951562,0.00051954,120]
[394000063,1763172642336,-356.203395,0.00051954,120]
[394000064,1763172642346,-356.203395,0.00051954,120]
[394000065,1763172642356,-356.203395,0.00051954,120]
[394000066,1763172642364,-356.203395,0.00051954,120]
[394000067,1763172642373,-151.0,0.00051954,120]
[394000068,1763172642382,-151.0,0.00051954,120]
[394000069,1763172642391,-151.0,0.00051954,120]
[394000070,1763172642400,-151.0,0.00051954,120]
[394000071,1763172642410,-169.594046,0.00051954,120]
[394000072,1763172642419,-151.0,0.00051954,120]
[394000073,1763172642429,-151.0,0.00051954,120]
[394000074,1763172642438,-151.0,0.00051954,120]
[394000075,1763172642448,-152.604281,0.00051954,120]
[394000076,1763172642460,-195.642105,0.00051954,7]
[394000077,1763172642472,-195.642105,0.00051954,7]
[394000078,1763172642481,-195.642105,0.00051954,7]
[394000079,1763172642490,-195.642105,0.00051954,7]
[394000080,1763172642499,-151.0,0.00051954,120]
[394000081,1763172642510,-157.846011,0.00051954,120]
[394000082,1763172642520,-152.71732,0.00051954,120]
[394000083,1763172642529,-157.497703,0.00051954,120]
[394000084,1763172642539,-151.0,0.00051954,120]
[394000085,1763172642550,-153.881741,0.00051954,120]
[394000086,1763172642559,-533.92382,0.00051954,120]
[394000087,1763172642568,-588.297637,0.00051954,120]
[394000088,1763172642578,-533.92382,0.00051954,120]
[394000089,1763172642588,-588.297637,0.00051954,120]
[394000090,1763172642597,-533.92382,0.00051954,120]
[394000091,1763172642607,-588.297637,0.00051954,120]
[394000092,1763172642616,-533.92382,0.00051954,120]
[394000093,1763172642626,-588.297637,0.00051954,120]
[394000094,1763172642636,-3050.0,0.00052,120]
[394000095,1763172642646,-159.0,0.00052,120]
[394000096,1763172642657,-395.2109804,0.00052027,30]
[394000097,1763172642667,-500.0,0.00052054,120]
[394000098,1763172642676,-500.0,0.00052054,120]
[394000099,1763172642688,-500.0,0.00052054,120]
[394000100,1763172642702,-500.0,0.00052054,120]
[394000101,1763172642711,-500.0,0.00052054,120]
[394000102,1763172642721,-500.0,0.00052054,120]
[394000103,1763172642730,-500.0,0.00052054,120]
[394000104,1763172642739,-500.0,0.00052054,120]
[394000105,1763172642749,-500.0,0.00052054,120]
[394000106,1763172642758,-500.0,0.00052054,2]
[394000107,1763172642767,-501.228809,0.00052054,120]
[394000108,1763172642777,-159.44678434,0.00052054,120]
[394000109,1763172642786,-524.39217667,0.00052054,120]
[394000110,1763172642795,-506.33944631,0.00052054,120]
[394000111,1763172642804,-160.0,0.00052054,120]
[394000112,1763172642813,-500.0,0.00052054,120]
[394000113,1763172642822,-500.0,0.00052054,120]
[394000114,1763172642831,-503.5907994,0.00052054,120]
[394000115,1763172642841,-500.0,0.00052054,120]
[394000117,1763172642850,-500.0,0.00052054,120]
[394000118,1763172642861,-500.0,0.00052054,120]
[394000119,1763172642870,-506.44616549,0.00052054,120]
[394000120,1763172642879,-500.0,0.00052054,120]
[394000121,1763172642889,-500.0,0.00052054,120]
[394000122,1763172642898,-500.0,0.00052054,120]
[394000123,1763172642908,-500.0,0.00052054,30]
[394000124,1763172642917,-609.02,0.00052054,120]
[394000125,1763172642927,-500.0,0.00052054,120]
[394000126,1763172642936,-474.03744693,0.00052054,120]
[394000127,1763172642945,-500.0,0.00052054,120]
[394000128,1763172642955,-500.0,0.00052054,120]
[394000129,1763172642964,-500.0,0.00052054,120]
[394000130,1763172642973,-500.0,0.00052054,120]
[394000131,1763172642982,-518.22541682,0.00052054,120]
[394000132,1763172642991,-500.0,0.00052054,120]
[394000133,1763172643000,-500.0,0.00052054,120]
[394000135,1763172643010,-500.0,0.00052054,120]
[394000136,1763172643019,-500.0,0.00052054,120]
[394000137,1763172643028,-500.0,0.00052054,120]
[394000138,1763172643037,-500.0,0.00052054,120]
[394000139,1763172643047,-500.0,0.00052054,120]
[394000140,1763172643056,-500.0,0.00052054,120]
[394000141,1763172643065,-500.0,0.00052054,30]
[394000142,1763172643075,-593.62168182,0.00052054,120]
[394000143,1763172643084,-500.0,0.00052054,120]
[394000144,1763172643093,-500.0,0.00052054,120]
[394000145,1763172643103,-519.87821795,0.00052054,120]
[394000146,1763172643113,-649.89,0.00052054,120]
[394000147,1763172643122,-500.0,0.00052054,120]
[394000148,1763172643131,-536.65,0.00052054,120]
[394000149,1763172643140,-502.66418288,0.00052054,120]
[394000150,1763172643150,-500.0,0.00052054,120]
[394000151,1763172643159,-501.69897897,0.00052054,120]
[394000152,1763172643169,-500.0,0.00052054,120]
[394000153,1763172643178,-500.0,0.00052054,120]
[394000154,1763172643187,-151.0,0.00052054,120]
[394000155,1763172643197,-500.0,0.00052054,120]
[394000156,1763172643206,-500.0,0.00052054,120]
[394000157,1763172643216,-503.71307889,0.00052054,120]
[394000158,1763172643225,-500.8926009,0.00052054,120]
[394000159,1763172643234,-500.0,0.00052054,120]
[394000160,1763172643243,-500.0,0.00052054,120]
[394000161,1763172643252,-500.3316859,0.00052054,120]
[394000162,1763172643261,-500.0,0.00052054,120]
[394000163,1763172643270,-500.0,0.00052054,120]
[394000164,1763172643280,-304.12522994,0.00052054,120]
[394000165,1763172643289,-500.0,0.00052054,120]
[394000166,1763172643298,-500.58207021,0.00052054,120]
[394000167,1763172643307,-500.70458102,0.00052054,120]
[394000168,1763172643316,-500.0,0.00052054,120]
[394000169,1763172643325,-549.21355902,0.00052054,120]
[394000170,1763172643334,-500.0,0.00052054,120]
[394000171,1763172643344,-500.0,0.00052054,120]
[394000172,1763172643354,-505.00260586,0.00052054,20]
[394000173,1763172643363,-500.0,0.00052054,120]
[394000174,1763172643372,-500.0,0.00052054,120]
[394000175,1763172643381,-500.0,0.00052054,120]
[394000176,1763172643390,-501.75139135,0.00052054,120]
[394000177,1763172643399,-759.32,0.00052054,120]
[394000178,1763172643408,-500.0,0.00052054,120]
[394000179,1763172643417,-500.0,0.00052054,120]
[394000181,1763172643426,-500.0,0.00052054,120]
[394000186,1763172643562,-184.44070478,0.00052054,120]
[394000187,1763172643572,-500.0,0.00052054,120]
[394000188,1763172643581,-500.0,0.00052054,120]
[394000189,1763172643594,-500.0,0.00052054,10]
[394000190,1763172643604,-500.90169348,0.00052054,120]
[394000191,1763172643613,-500.50616298,0.00052054,120]
[394000192,1763172643622,-500.0,0.00052054,120]
[394000193,1763172643631,-500.0,0.00052054,120]
[394000194,1763172643641,-500.0,0.00052054,120]
[394000195,1763172643649,-554.45,0.00052054,120]
[394000196,1763172643658,-501.05118098,0.00052054,120]
[394000197,1763172643667,-500.0,0.00052054,120]
[394000198,1763172643677,-221.6,0.00052054,120]
[394000199,1763172643685,-629.47,0.00052054,120]
[394000200,1763172643695,-478.13887562,0.00052054,120]
[394000201,1763172643704,-500.0,0.00052054,120]
[394000202,1763172643713,-501.35066309,0.00052054,120]
[394000203,1763172643724,-153.173027,0.00052054,120]
[394000204,1763172643733,-513.25552799,0.00052054,120]
[394000205,1763172643742,-151.870863,0.00052054,120]
[394000206,1763172643752,-500.0,0.00052054,120]
[394000207,1763172643762,-500.0,0.00052054,120]
[394000208,1763172643771,-500.0,0.00052054,120]
[394000209,1763172643780,-151.0,0.00052054,120]
[394000210,1763172643789,-151.0,0.00052054,120]
[394000211,1763172643798,-509.05501865,0.00052054,120]
[394000212,1763172643807,-500.0,0.00052054,120]
[394000213,1763172643816,-500.0,0.00052054,120]
[394000214,1763172643825,-500.0,0.00052054,120]
[394000215,1763172643834,-514.82752145,0.00052054,120]
[394000216,1763172643843,-500.0,0.00052054,120]
[394000217,1763172643852,-517.24760543,0.00052054,120]
[394000218,1763172643862,-274.92451629,0.00052054,120]
[394000219,1763172643871,-500.0,0.00052054,120]
[394000220,1763172643880,-151.0,0.00052054,120]
[394000221,1763172643889,-620.99467892,0.00052054,120]
[394000222,1763172643898,-500.0,0.00052054,120]
[394000223,1763172643909,-500.0,0.00052054,120]
[394000224,1763172643918,-502.8512221,0.00052054,120]
[394000225,1763172643927,-151.0,0.00052054,30]
[394000226,1763172643936,-152.791829,0.00052054,30]
[394000227,1763172643946,-500.0,0.00052054,120]
[394000228,1763172643955,-500.0,0.00052054,120]
[394000229,1763172643964,-501.06330739,0.00052054,120]
[394000230,1763172643974,-500.0,0.00052054,120]
[394000231,1763172643983,-500.0,0.00052054,120]
[394000232,1763172643992,-790.87,0.00052054,120]
[394000233,1763172644001,-582.92,0.00052054,120]
[394000234,1763172644010,-500.0,0.00052054,120]
[394000235,1763172644020,-500.0,0.00052054,120]
[394000236,1763172644029,-500.0,0.00052054,120]
[394000237,1763172644039,-500.0,0.00052054,120]
[394000238,1763172644048,-500.0,0.00052054,120]
[394000239,1763172644057,-590.85,0.00052054,120]
[394000240,1763172644067,-500.0,0.00052054,120]
[394000241,1763172644076,-500.0,0.00052054,120]
[394000242,1763172644086,-500.0,0.00052054,120]
[394000243,1763172644096,-500.0,0.00052054,120]
[394000244,1763172644105,-500.0,0.00052054,14]
[394000245,1763172644114,-500.0,0.00052054,120]
[394000246,1763172644123,-500.0,0.00052054,120]
[394000247,1763172644132,-500.0,0.00052054,120]
[394000248,1763172644141,-673.94,0.00052054,120]
[394000249,1763172644150,-500.0,0.00052054,120]
[394000250,1763172644159,-500.0,0.00052054,120]
[394000251,1763172644168,-500.0,0.00052054,120]
[394000252,1763172644177,-151.0,0.00052054,120]
[394000253,1763172644186,-151.0,0.00052054,120]
[394000254,1763172644195,-500.84852427,0.00052054,120]
[394000255,1763172644205,-151.0,0.00052054,120]
[394000256,1763172644215,-151.0,0.00052054,120]
[394000257,1763172644224,-500.0,0.00052054,120]
[394000258,1763172644234,-500.0,0.00052054,120]
[394000259,1763172644244,-500.0,0.00052054,120]
[394000260,1763172644253,-500.0,0.00052054,120]
[394000261,1763172644263,-500.27396454,0.00052054,120]
[394000262,1763172644272,-1000.0,0.00052054,2]
[394000263,1763172644281,-500.83644519,0.00052054,120]
[394000264,1763172644290,-151.0,0.00052054,120]
[394000265,1763172644299,-410.7045372,0.00052054,120]
[394000266,1763172644308,-151.0,0.00052054,120]
[394000267,1763172644318,-500.0,0.00052054,120]
[394000268,1763172644327,-501.51850994,0.00052054,120]
[394000269,1763172644336,-503.48713532,0.00052054,120]
[394000270,1763172644345,-500.0,0.00052054,120]
[394000271,1763172644355,-544.93,0.00052054,120]
[394000272,1763172644364,-151.0,0.00052054,120]
[394000273,1763172644374,-151.0,0.00052054,120]
[394000274,1763172644383,-501.39816328,0.00052054,120]
[394000275,1763172644392,-237.297237,0.00052054,120]
[394000276,1763172644401,-500.0,0.00052054,120]
[394000277,1763172644410,-500.0,0.00052054,120]
[394000278,1763172644419,-500.0,0.00052054,120]
[394000279,1763172644428,-503.3821849,0.00052054,120]
[394000280,1763172644438,-502.42476153,0.00052054,120]
[394000281,1763172644447,-500.0,0.00052054,120]
[394000282,1763172644456,-500.0,0.00052054,120]
[394000283,1763172644469,-500.0,0.00052054,120]
[394000284,1763172644479,-500.0,0.00052054,120]
[394000285,1763172644488,-500.0,0.00052054,120]
[394000286,1763172644497,-500.893566,0.00052054,120]
[394000287,1763172644506,-571.3,0.00052054,120]
[394000288,1763172644516,-500.0,0.00052054,120]
[394000289,1763172644525,-500.0,0.00052054,120]
[394000290,1763172644535,-727.770705,0.00052054,120]
[394000291,1763172644545,-151.0,0.00052054,120]
[394000292,1763172644554,-152.710606,0.00052054,120]
[394000293,1763172644564,-727.770705,0.00052054,120]
[394000294,1763172644574,-727.770705,0.00052054,120]
[394000295,1763172644583,-1377.81,0.00052054,7]
[394000296,1763172644592,-500.0,0.00052054,120]
[394000297,1763172644602,-727.770705,0.00052054,120]
[394000298,1763172644612,-727.770705,0.00052054,120]
[394000299,1763172644621,-500.0,0.00052054,120]
[394000300,1763172644631,-727.770705,0.00052054,120]
[394000301,1763172644641,-727.770705,0.00052054,120]
[394000302,1763172644650,-500.0,0.00052054,120]
[394000303,1763172644659,-500.0,0.00052054,120]
[394000304,1763172644668,-618.7,0.00052054,120]
[394000305,1763172644678,-153.210785,0.00052054,120]
[394000306,1763172644686,-500.0,0.00052054,120]
[394000307,1763172644696,-500.0,0.00052054,120]
[394000308,1763172644705,-512.69007407,0.00052054,120]
[394000309,1763172644715,-500.0,0.00052054,120]
[394000310,1763172644724,-501.12095256,0.00052054,120]
[394000311,1763172644734,-500.0,0.00052054,120]
[394000312,1763172644743,-500.0,0.00052054,120]
[394000313,1763172644753,-500.0,0.00052054,120]
[394000314,1763172644762,-655.84,0.00052054,120]
[394000315,1763172644771,-500.0,0.00052054,120]
[394000316,1763172644781,-500.0,0.00052054,120]
[394000317,1763172644790,-500.91791992,0.00052054,120]
[394000318,1763172644799,-500.0,0.00052054,120]
[394000319,1763172644808,-500.0,0.00052054,120]
[394000320,1763172644817,-2868.729599,0.00052054,120]
[394000321,1763172644826,-2868.729599,0.00052054,120]
[394000322,1763172644836,-500.0,0.00052054,120]
[394000323,1763172644845,-377.35860102,0.00052054,120]
[394000324,1763172644855,-2868.729599,0.00052054,120]
[394000325,1763172644864,-2868.729599,0.00052054,120]
[394000326,1763172644873,-500.0,0.00052054,120]
[394000327,1763172644882,-2868.729599,0.00052054,120]
[394000328,1763172644892,-2868.729599,0.00052054,120]
[394000329,1763172644901,-3400.85,0.00052054,2]
[394000330,1763172644910,-349.90911216,0.00052054,120]